[Event "Titled Tuesday Blitz August 1 Late 2023"]
[White "Grigoriants, Sergey"]
[Black "Andreikin, Dmitry"]
[WhiteFideId "4130804"]
[BlackFideId "4158814"]
[WhiteElo "2847"]
[BlackElo "3057"]
[Result "1/2-1/2"]
[Round "5"]
[TimeControl "180+1"]
[Date "2023.08.01"]
[WhiteClock "0:00:07"]
[BlackClock "0:00:59"]
[Board "3"]

1. d4 {[%clk 0:03:00]}  Nf6 {[%clk 0:03:00]} 2. c4 {[%clk 0:03:00]}  e6 {[%clk 0:03:01]} 3. Nf3 {[%clk 0:02:59]}  b6 {[%clk 0:03:01]} 4. g3 {[%clk 0:02:53]}  Bb7 {[%clk 0:03:02]} 5. Bg2 {[%clk 0:02:53]}  Bb4+ {[%clk 0:03:02]} 6. Bd2 {[%clk 0:02:51]}  a5 {[%clk 0:03:03]} 7. O-O {[%clk 0:02:50]}  O-O {[%clk 0:03:03]} 8. Bf4 {[%clk 0:02:42]}  Be7 {[%clk 0:03:02]} 9. Nc3 {[%clk 0:02:41]}  Ne4 {[%clk 0:03:02]} 10. Qc2 {[%clk 0:02:39]}  Nxc3 {[%clk 0:03:01]} 11. Qxc3 {[%clk 0:02:37]}  d6 {[%clk 0:03:00]} 12. Rad1 {[%clk 0:02:30]}  Nd7 {[%clk 0:03:00]} 13. Rfe1 {[%clk 0:02:30]}  Nf6 {[%clk 0:02:57]} 14. b3 {[%clk 0:02:06]}  Be4 {[%clk 0:02:52]} 15. Bh3 {[%clk 0:01:55]}  Qc8 {[%clk 0:02:48]} 16. Nd2 {[%clk 0:01:55]}  Bf5 {[%clk 0:02:35]} 17. Bxf5 {[%clk 0:01:51]}  exf5 {[%clk 0:02:35]} 18. Qd3 {[%clk 0:01:43]}  Re8 {[%clk 0:02:32]} 19. Bg5 {[%clk 0:01:38]}  Ne4 {[%clk 0:02:28]} 20. Bxe7 {[%clk 0:01:28]}  Rxe7 {[%clk 0:02:29]} 21. Nf1 {[%clk 0:01:11]}  Qe6 {[%clk 0:02:24]} 22. Ne3 {[%clk 0:01:07]}  Rae8 {[%clk 0:02:11]} 23. Nd5 {[%clk 0:01:03]}  Rd7 {[%clk 0:02:12]} 24. f3 {[%clk 0:00:56]}  Nf6 {[%clk 0:02:11]} 25. Nf4 {[%clk 0:00:40]}  Qe3+ {[%clk 0:02:11]} 26. Qxe3 {[%clk 0:00:39]}  Rxe3 {[%clk 0:02:12]} 27. Kf2 {[%clk 0:00:34]}  Rc3 {[%clk 0:02:05]} 28. Rc1 {[%clk 0:00:22]}  Rxc1 {[%clk 0:02:04]} 29. Rxc1 {[%clk 0:00:23]}  Kf8 {[%clk 0:01:57]} 30. Nd5 {[%clk 0:00:23]}  Ne8 {[%clk 0:01:56]} 31. a3 {[%clk 0:00:22]}  Rd8 {[%clk 0:01:54]} 32. Ra1 {[%clk 0:00:18]}  Ra8 {[%clk 0:01:48]} 33. h4 {[%clk 0:00:18]}  Ra6 {[%clk 0:01:46]} 34. Rc1 {[%clk 0:00:18]}  c6 {[%clk 0:01:44]} 35. Nc3 {[%clk 0:00:16]}  Nc7 {[%clk 0:01:42]} 36. d5 {[%clk 0:00:16]}  c5 {[%clk 0:01:38]} 37. a4 {[%clk 0:00:15]}  Ra8 {[%clk 0:01:37]} 38. e4 {[%clk 0:00:15]}  fxe4 {[%clk 0:01:34]} 39. Nxe4 {[%clk 0:00:15]}  Rd8 {[%clk 0:01:35]} 40. Re1 {[%clk 0:00:15]}  Na6 {[%clk 0:01:33]} 41. Ke3 {[%clk 0:00:14]}  Nb4 {[%clk 0:01:34]} 42. Kd2 {[%clk 0:00:14]}  h6 {[%clk 0:01:33]} 43. g4 {[%clk 0:00:14]}  Na6 {[%clk 0:01:31]} 44. f4 {[%clk 0:00:14]}  Nc7 {[%clk 0:01:30]} 45. f5 {[%clk 0:00:13]}  Ne8 {[%clk 0:01:24]} 46. g5 {[%clk 0:00:13]}  h5 {[%clk 0:01:21]} 47. Ke3 {[%clk 0:00:12]}  Rd7 {[%clk 0:01:21]} 48. Kf4 {[%clk 0:00:12]}  Re7 {[%clk 0:01:21]} 49. Re3 {[%clk 0:00:12]}  g6 {[%clk 0:01:08]} 50. f6 {[%clk 0:00:12]}  Re5 {[%clk 0:01:05]} 51. Nc3 {[%clk 0:00:10]}  Rxe3 {[%clk 0:00:56]} 52. Kxe3 {[%clk 0:00:10]}  Nc7 {[%clk 0:00:56]} 53. Ne4 {[%clk 0:00:10]}  Ne8 {[%clk 0:00:56]} 54. Kf4 {[%clk 0:00:10]}  Kg8 {[%clk 0:00:57]} 55. Kf3 {[%clk 0:00:10]}  Kf8 {[%clk 0:00:57]} 56. Ke3 {[%clk 0:00:09]}  Kg8 {[%clk 0:00:58]} 57. Kd3 {[%clk 0:00:09]}  Kf8 {[%clk 0:00:58]} 58. Ke3 {[%clk 0:00:09]}  Kg8 {[%clk 0:00:59]} 59. Kf4 {[%clk 0:00:09]}  Kf8 {[%clk 0:00:59]} 60. Ke3 {[%clk 0:00:07]} 1/2-1/2


[Site "https://www.chess.com"]

[Event "Titled Tuesday Blitz August 1 Late 2023"]
[White "Wu, Rochelle"]
[Black "Kazakouski, Valery"]
[WhiteFideId "30908132"]
[BlackFideId "13507443"]
[WhiteElo "2631"]
[BlackElo "2901"]
[Result "0-1"]
[Round "5"]
[TimeControl "180+1"]
[Date "2023.08.01"]
[WhiteClock "0:00:03"]
[BlackClock "0:00:11"]
[Board "8"]

1. d4 {[%clk 0:03:00]}  Nf6 {[%clk 0:02:59]} 2. c4 {[%clk 0:03:01]}  e6 {[%clk 0:02:59]} 3. Nc3 {[%clk 0:03:01]}  Bb4 {[%clk 0:02:59]} 4. Qc2 {[%clk 0:03:01]}  Nc6 {[%clk 0:02:59]} 5. Nf3 {[%clk 0:03:01]}  d6 {[%clk 0:03:00]} 6. e3 {[%clk 0:02:59]}  O-O {[%clk 0:02:59]} 7. Bd3 {[%clk 0:02:55]}  e5 {[%clk 0:02:56]} 8. d5 {[%clk 0:02:50]}  Nb8 {[%clk 0:02:56]} 9. Bd2 {[%clk 0:02:44]}  Nbd7 {[%clk 0:02:53]} 10. O-O {[%clk 0:02:41]}  Nc5 {[%clk 0:02:52]} 11. e4 {[%clk 0:01:56]}  Nh5 {[%clk 0:02:49]} 12. a3 {[%clk 0:01:36]}  Bxc3 {[%clk 0:02:49]} 13. Qxc3 {[%clk 0:01:33]}  f5 {[%clk 0:02:46]} 14. Rae1 {[%clk 0:01:23]}  Nf6 {[%clk 0:02:35]} 15. Bg5 {[%clk 0:01:16]}  Nxd3 {[%clk 0:01:59]} 16. Bxf6 {[%clk 0:01:12]}  Qxf6 {[%clk 0:01:52]} 17. Qxd3 {[%clk 0:01:12]}  a5 {[%clk 0:01:49]} 18. exf5 {[%clk 0:01:04]}  Bxf5 {[%clk 0:01:48]} 19. Qc3 {[%clk 0:01:04]}  a4 {[%clk 0:01:45]} 20. Re3 {[%clk 0:00:59]}  b6 {[%clk 0:01:43]} 21. Rfe1 {[%clk 0:00:50]}  Qh6 {[%clk 0:01:41]} 22. Nd2 {[%clk 0:00:43]}  Rf7 {[%clk 0:01:39]} 23. Rg3 {[%clk 0:00:25]}  Raf8 {[%clk 0:01:37]} 24. Qe3 {[%clk 0:00:21]}  Qh4 {[%clk 0:01:35]} 25. Qc3 {[%clk 0:00:18]}  Qf4 {[%clk 0:01:31]} 26. Rf3 {[%clk 0:00:18]}  Qh6 {[%clk 0:01:30]} 27. h3 {[%clk 0:00:16]}  Qh4 {[%clk 0:01:22]} 28. Rg3 {[%clk 0:00:15]}  h6 {[%clk 0:01:21]} 29. Nf3 {[%clk 0:00:15]}  Qd8 {[%clk 0:01:19]} 30. Re3 {[%clk 0:00:15]}  Kh7 {[%clk 0:01:18]} 31. Nd2 {[%clk 0:00:14]}  Qh4 {[%clk 0:01:13]} 32. Nf3 {[%clk 0:00:14]}  Qf4 {[%clk 0:01:13]} 33. Nd2 {[%clk 0:00:12]}  e4 {[%clk 0:01:03]} 34. Qc2 {[%clk 0:00:11]}  Re7 {[%clk 0:00:44]} 35. Nb1 {[%clk 0:00:11]}  h5 {[%clk 0:00:39]} 36. h4 {[%clk 0:00:10]}  Qxh4 {[%clk 0:00:38]} 37. Qxa4 {[%clk 0:00:09]}  Qf4 {[%clk 0:00:36]} 38. Qd1 {[%clk 0:00:08]}  g6 {[%clk 0:00:34]} 39. Nc3 {[%clk 0:00:04]}  h4 {[%clk 0:00:33]} 40. Rgf3 {[%clk 0:00:02]}  Qg5 {[%clk 0:00:28]} 41. Qe1 {[%clk 0:00:02]}  Rfe8 {[%clk 0:00:26]} 42. Rh3 {[%clk 0:00:01]}  Bxh3 {[%clk 0:00:27]} 43. Rxh3 {[%clk 0:00:02]}  e3 {[%clk 0:00:27]} 44. f4 {[%clk 0:00:02]}  Qf6 {[%clk 0:00:20]} 45. Rxh4+ {[%clk 0:00:03]}  Kg7 {[%clk 0:00:21]} 46. Ne2 {[%clk 0:00:03]}  Qxb2 {[%clk 0:00:20]} 47. f5 {[%clk 0:00:03]}  Re4 {[%clk 0:00:15]} 48. Qg3 {[%clk 0:00:02]}  Qf6 {[%clk 0:00:13]} 49. Rxe4 {[%clk 0:00:01]}  Rxe4 {[%clk 0:00:14]} 50. Nf4 {[%clk 0:00:02]}  Qxf5 {[%clk 0:00:11]} 51. Ne6+ {[%clk 0:00:02]}  Rxe6 {[%clk 0:00:10]} 52. dxe6 {[%clk 0:00:03]}  Qxe6 {[%clk 0:00:11]} 53. Kf1 {[%clk 0:00:03]}  Qxc4+ {[%clk 0:00:11]} 0-1


[Site "https://www.chess.com"]

[Event "Titled Tuesday Blitz August 1 Late 2023"]
[White "Rustemov, Alexander"]
[Black "Bortnyk, Olexandr"]
[WhiteFideId "4119002"]
[BlackFideId "14120828"]
[WhiteElo "2843"]
[BlackElo "3066"]
[Result "0-1"]
[Round "5"]
[TimeControl "180+1"]
[Date "2023.08.01"]
[WhiteClock "0:00:00"]
[BlackClock "0:00:05"]
[Board "9"]

1. d4 {[%clk 0:03:00]}  Nf6 {[%clk 0:02:49]} 2. c4 {[%clk 0:03:00]}  d6 {[%clk 0:02:46]} 3. g3 {[%clk 0:02:59]}  g6 {[%clk 0:02:47]} 4. Bg2 {[%clk 0:02:59]}  Bg7 {[%clk 0:02:48]} 5. Nc3 {[%clk 0:02:59]}  O-O {[%clk 0:02:49]} 6. Nf3 {[%clk 0:02:58]}  Bf5 {[%clk 0:02:49]} 7. Nh4 {[%clk 0:02:54]}  Bc8 {[%clk 0:02:49]} 8. O-O {[%clk 0:02:54]}  c6 {[%clk 0:02:40]} 9. e4 {[%clk 0:02:53]}  e5 {[%clk 0:02:38]} 10. Nf3 {[%clk 0:02:53]}  Nbd7 {[%clk 0:02:37]} 11. h3 {[%clk 0:02:53]}  Qb6 {[%clk 0:02:33]} 12. d5 {[%clk 0:02:49]}  cxd5 {[%clk 0:02:33]} 13. cxd5 {[%clk 0:02:49]}  Nc5 {[%clk 0:02:33]} 14. Qe2 {[%clk 0:02:50]}  Bd7 {[%clk 0:02:29]} 15. Be3 {[%clk 0:02:49]}  Rfc8 {[%clk 0:02:26]} 16. Rab1 {[%clk 0:02:46]}  Qa6 {[%clk 0:02:23]} 17. Qxa6 {[%clk 0:02:43]}  Nxa6 {[%clk 0:02:20]} 18. Nd2 {[%clk 0:02:37]}  b5 {[%clk 0:02:18]} 19. Rfc1 {[%clk 0:02:23]}  Nc5 {[%clk 0:02:08]} 20. b4 {[%clk 0:01:48]}  Nd3 {[%clk 0:02:05]} 21. Rc2 {[%clk 0:01:48]}  a5 {[%clk 0:02:06]} 22. a3 {[%clk 0:01:40]}  axb4 {[%clk 0:01:37]} 23. axb4 {[%clk 0:01:41]}  Ra4 {[%clk 0:01:14]} 24. Nxa4 {[%clk 0:01:29]}  Rxc2 {[%clk 0:01:14]} 25. Nb6 {[%clk 0:01:29]}  Be8 {[%clk 0:01:03]} 26. Bf1 {[%clk 0:01:29]}  Nxf2 {[%clk 0:00:34]} 27. Kxf2 {[%clk 0:01:21]}  Nxe4+ {[%clk 0:00:35]} 28. Ke1 {[%clk 0:01:21]}  Nxg3 {[%clk 0:00:35]} 29. Bd3 {[%clk 0:01:10]}  Rc3 {[%clk 0:00:33]} 30. Rb3 {[%clk 0:01:10]}  Rxb3 {[%clk 0:00:21]} 31. Nxb3 {[%clk 0:01:10]}  f5 {[%clk 0:00:22]} 32. Nc8 {[%clk 0:01:06]}  Bf8 {[%clk 0:00:17]} 33. Na7 {[%clk 0:01:06]}  Bf7 {[%clk 0:00:12]} 34. Bxb5 {[%clk 0:00:43]}  Bxd5 {[%clk 0:00:12]} 35. Nd2 {[%clk 0:00:43]}  f4 {[%clk 0:00:12]} 36. Bf2 {[%clk 0:00:41]}  Nf5 {[%clk 0:00:12]} 37. Bc4 {[%clk 0:00:40]}  Bxc4 {[%clk 0:00:12]} 38. Nxc4 {[%clk 0:00:40]}  d5 {[%clk 0:00:13]} 39. Nxe5 {[%clk 0:00:38]}  Bxb4+ {[%clk 0:00:14]} 40. Ke2 {[%clk 0:00:36]}  g5 {[%clk 0:00:14]} 41. Nac6 {[%clk 0:00:33]}  Bc3 {[%clk 0:00:14]} 42. Kd3 {[%clk 0:00:28]}  Bb2 {[%clk 0:00:13]} 43. Nf3 {[%clk 0:00:24]}  h6 {[%clk 0:00:13]} 44. Nb4 {[%clk 0:00:25]}  Ne7 {[%clk 0:00:12]} 45. Bc5 {[%clk 0:00:22]}  Kf7 {[%clk 0:00:10]} 46. Bxe7 {[%clk 0:00:21]}  Kxe7 {[%clk 0:00:11]} 47. Nxd5+ {[%clk 0:00:22]}  Ke6 {[%clk 0:00:11]} 48. Ke4 {[%clk 0:00:22]}  Bg7 {[%clk 0:00:08]} 49. Nc7+ {[%clk 0:00:20]}  Kd7 {[%clk 0:00:06]} 50. Nb5 {[%clk 0:00:17]}  Ke6 {[%clk 0:00:07]} 51. Nbd4+ {[%clk 0:00:16]}  Kf6 {[%clk 0:00:07]} 52. Ne5 {[%clk 0:00:08]}  h5 {[%clk 0:00:05]} 53. Nf5 {[%clk 0:00:05]}  Bh8 {[%clk 0:00:05]} 54. Nd7+ {[%clk 0:00:03]}  Ke6 {[%clk 0:00:06]} 55. Nc5+ {[%clk 0:00:02]}  Kf7 {[%clk 0:00:06]} 56. Nd3 {[%clk 0:00:00]}  Bf6 {[%clk 0:00:05]} 0-1


[Site "https://www.chess.com"]

[Event "Titled Tuesday Blitz August 1 Late 2023"]
[White "Sargsyan, Shant"]
[Black "Bauman_Guy"]
[WhiteFideId "13306766"]
[WhiteElo "2978"]
[BlackElo "2809"]
[Result "1-0"]
[Round "5"]
[TimeControl "180+1"]
[Date "2023.08.01"]
[WhiteClock "0:00:03"]
[BlackClock "0:00:02"]
[Board "11"]

1. c4 {[%clk 0:03:00]}  Nf6 {[%clk 0:02:59]} 2. g3 {[%clk 0:03:01]}  e5 {[%clk 0:02:58]} 3. Bg2 {[%clk 0:02:59]}  g6 {[%clk 0:02:59]} 4. Nc3 {[%clk 0:02:59]}  Bg7 {[%clk 0:02:59]} 5. d3 {[%clk 0:03:00]}  O-O {[%clk 0:02:59]} 6. b4 {[%clk 0:02:59]}  a5 {[%clk 0:02:59]} 7. b5 {[%clk 0:02:59]}  d6 {[%clk 0:02:59]} 8. Bg5 {[%clk 0:02:56]}  Nbd7 {[%clk 0:02:59]} 9. Nf3 {[%clk 0:02:56]}  h6 {[%clk 0:02:59]} 10. Bxf6 {[%clk 0:02:56]}  Qxf6 {[%clk 0:02:56]} 11. Nd2 {[%clk 0:02:56]}  Qd8 {[%clk 0:02:56]} 12. O-O {[%clk 0:02:56]}  f6 {[%clk 0:02:56]} 13. Nd5 {[%clk 0:02:44]}  f5 {[%clk 0:02:56]} 14. e3 {[%clk 0:02:44]}  h5 {[%clk 0:02:54]} 15. h4 {[%clk 0:02:42]}  Nc5 {[%clk 0:02:47]} 16. Qc2 {[%clk 0:02:39]}  a4 {[%clk 0:02:43]} 17. Rab1 {[%clk 0:02:38]}  Bd7 {[%clk 0:02:37]} 18. Nf3 {[%clk 0:02:37]}  c6 {[%clk 0:02:20]} 19. bxc6 {[%clk 0:02:36]}  bxc6 {[%clk 0:02:21]} 20. Nb6 {[%clk 0:02:36]}  Ra7 {[%clk 0:02:13]} 21. Nxd7 {[%clk 0:02:32]}  Qxd7 {[%clk 0:02:12]} 22. Rb6 {[%clk 0:02:31]}  a3 {[%clk 0:01:57]} 23. Ng5 {[%clk 0:02:24]}  Rc8 {[%clk 0:01:51]} 24. Rfb1 {[%clk 0:01:58]}  Na4 {[%clk 0:01:50]} 25. Rxc6 {[%clk 0:01:32]}  Rxc6 {[%clk 0:01:47]} 26. Bd5+ {[%clk 0:01:33]}  Kf8 {[%clk 0:01:29]} 27. Ne6+ {[%clk 0:00:31]}  Ke7 {[%clk 0:01:11]} 28. Nxg7 {[%clk 0:00:31]}  Rb6 {[%clk 0:01:08]} 29. Rxb6 {[%clk 0:00:19]}  Nxb6 {[%clk 0:01:08]} 30. d4 {[%clk 0:00:19]}  Qa4 {[%clk 0:00:37]} 31. Qb1 {[%clk 0:00:18]}  Qa5 {[%clk 0:00:32]} 32. Bg2 {[%clk 0:00:08]}  e4 {[%clk 0:00:23]} 33. d5 {[%clk 0:00:07]}  Nxc4 {[%clk 0:00:22]} 34. Qb8 {[%clk 0:00:06]}  Qc7 {[%clk 0:00:14]} 35. Qe8+ {[%clk 0:00:05]}  Kf6 {[%clk 0:00:14]} 36. Qf8+ {[%clk 0:00:04]}  Ke5 {[%clk 0:00:11]} 37. Ne6 {[%clk 0:00:02]}  Qb6 {[%clk 0:00:08]} 38. Nf4 {[%clk 0:00:02]}  Qc7 {[%clk 0:00:05]} 39. Qh8+ {[%clk 0:00:02]}  Qg7 {[%clk 0:00:05]} 40. Qe8+ {[%clk 0:00:02]}  Qe7 {[%clk 0:00:05]} 41. Qh8+ {[%clk 0:00:02]}  Qg7 {[%clk 0:00:05]} 42. Qc8 {[%clk 0:00:03]}  Rc7 {[%clk 0:00:02]} 43. Qe6# {[%clk 0:00:03]} 1-0


[Site "https://www.chess.com"]

[Event "Titled Tuesday Blitz August 1 Late 2023"]
[White "Vetoshko, Volodymyr"]
[Black "Pranav, V"]
[WhiteFideId "14122480"]
[BlackFideId "25060783"]
[WhiteElo "2736"]
[BlackElo "3012"]
[Result "0-1"]
[Round "5"]
[TimeControl "180+1"]
[Date "2023.08.01"]
[WhiteClock "0:00:00"]
[BlackClock "0:00:05"]
[Board "14"]

1. b3 {[%clk 0:03:00]}  e5 {[%clk 0:02:59]} 2. Bb2 {[%clk 0:03:00]}  Nc6 {[%clk 0:02:59]} 3. c4 {[%clk 0:03:01]}  Nf6 {[%clk 0:02:58]} 4. e3 {[%clk 0:03:01]}  d6 {[%clk 0:02:58]} 5. d4 {[%clk 0:02:52]}  exd4 {[%clk 0:02:55]} 6. exd4 {[%clk 0:02:53]}  d5 {[%clk 0:02:56]} 7. Nf3 {[%clk 0:02:52]}  Bb4+ {[%clk 0:02:55]} 8. Nbd2 {[%clk 0:02:51]}  O-O {[%clk 0:02:55]} 9. Be2 {[%clk 0:02:51]}  Re8 {[%clk 0:02:55]} 10. O-O {[%clk 0:02:51]}  Bg4 {[%clk 0:02:53]} 11. h3 {[%clk 0:02:47]}  Bh5 {[%clk 0:02:53]} 12. a3 {[%clk 0:02:40]}  Bf8 {[%clk 0:02:45]} 13. Re1 {[%clk 0:02:23]}  a5 {[%clk 0:02:31]} 14. Ne5 {[%clk 0:02:17]}  Bxe2 {[%clk 0:02:23]} 15. Rxe2 {[%clk 0:02:17]}  dxc4 {[%clk 0:02:17]} 16. Nxc6 {[%clk 0:02:16]}  bxc6 {[%clk 0:02:16]} 17. bxc4 {[%clk 0:02:14]}  Rb8 {[%clk 0:02:10]} 18. Bc3 {[%clk 0:02:14]}  Qd7 {[%clk 0:02:05]} 19. Rxe8 {[%clk 0:02:04]}  Rxe8 {[%clk 0:02:05]} 20. Nf3 {[%clk 0:02:01]}  Qf5 {[%clk 0:01:35]} 21. Qa4 {[%clk 0:01:42]}  Qd3 {[%clk 0:01:35]} 22. Be1 {[%clk 0:01:27]}  c5 {[%clk 0:01:19]} 23. d5 {[%clk 0:01:08]}  h6 {[%clk 0:00:50]} 24. Rc1 {[%clk 0:00:44]}  Bd6 {[%clk 0:00:44]} 25. Qxa5 {[%clk 0:00:36]}  Ne4 {[%clk 0:00:33]} 26. Qa4 {[%clk 0:00:36]}  Re7 {[%clk 0:00:32]} 27. Rd1 {[%clk 0:00:26]}  Qe2 {[%clk 0:00:31]} 28. Qb3 {[%clk 0:00:26]}  Ng5 {[%clk 0:00:29]} 29. Ba5 {[%clk 0:00:08]}  Nxf3+ {[%clk 0:00:23]} 30. Qxf3 {[%clk 0:00:09]}  Qxc4 {[%clk 0:00:23]} 31. Bc3 {[%clk 0:00:06]}  Qb3 {[%clk 0:00:18]} 32. Re1 {[%clk 0:00:06]}  Qxa3 {[%clk 0:00:05]} 33. Rxe7 {[%clk 0:00:06]}  Bxe7 {[%clk 0:00:06]} 34. g4 {[%clk 0:00:07]}  Bd6 {[%clk 0:00:05]} 35. Kg2 {[%clk 0:00:06]}  c4 {[%clk 0:00:05]} 36. Qe3 {[%clk 0:00:06]}  Qa4 {[%clk 0:00:02]} 37. Qd4 {[%clk 0:00:04]}  f6 {[%clk 0:00:02]} 38. Qe4 {[%clk 0:00:04]}  Kf8 {[%clk 0:00:01]} 39. Qe6 {[%clk 0:00:02]}  Qe8 {[%clk 0:00:01]} 40. Kf3 {[%clk 0:00:01]}  Qxe6 {[%clk 0:00:01]} 41. dxe6 {[%clk 0:00:02]}  Ke7 {[%clk 0:00:02]} 42. Ke4 {[%clk 0:00:03]}  Kxe6 {[%clk 0:00:03]} 43. Kd4 {[%clk 0:00:03]}  Be5+ {[%clk 0:00:03]} 44. Kxc4 {[%clk 0:00:03]}  Bxc3 {[%clk 0:00:04]} 45. Kxc3 {[%clk 0:00:04]}  f5 {[%clk 0:00:04]} 46. Kd4 {[%clk 0:00:03]}  fxg4 {[%clk 0:00:04]} 47. hxg4 {[%clk 0:00:04]}  g6 {[%clk 0:00:04]} 48. f4 {[%clk 0:00:04]}  Kf6 {[%clk 0:00:04]} 49. Ke4 {[%clk 0:00:02]}  h5 {[%clk 0:00:04]} 50. g5+ {[%clk 0:00:01]}  Ke6 {[%clk 0:00:04]} 51. f5+ {[%clk 0:00:01]}  gxf5+ {[%clk 0:00:05]} 52. Kf4 {[%clk 0:00:02]}  h4 {[%clk 0:00:05]} 53. g6 {[%clk 0:00:00]}  Kf6 {[%clk 0:00:05]} 0-1


[Site "https://www.chess.com"]

[Event "Titled Tuesday Blitz August 1 Late 2023"]
[White "Aronian, Levon"]
[Black "Ezat, Mohamed"]
[WhiteFideId "13300474"]
[BlackFideId "10600906"]
[WhiteElo "3034"]
[BlackElo "2679"]
[Result "1-0"]
[Round "5"]
[TimeControl "180+1"]
[Date "2023.08.01"]
[WhiteClock "0:01:51"]
[BlackClock "0:00:07"]
[Board "15"]

1. e4 {[%clk 0:03:00]}  c6 {[%clk 0:02:16]} 2. Nf3 {[%clk 0:02:59]}  d5 {[%clk 0:02:15]} 3. exd5 {[%clk 0:02:59]}  cxd5 {[%clk 0:02:15]} 4. d4 {[%clk 0:03:00]}  Bg4 {[%clk 0:02:15]} 5. c4 {[%clk 0:02:59]}  Nf6 {[%clk 0:02:13]} 6. Nc3 {[%clk 0:02:56]}  Nc6 {[%clk 0:02:12]} 7. Be3 {[%clk 0:02:56]}  e6 {[%clk 0:02:11]} 8. c5 {[%clk 0:02:55]}  Ne4 {[%clk 0:02:08]} 9. Bb5 {[%clk 0:02:54]}  Nxc3 {[%clk 0:02:06]} 10. bxc3 {[%clk 0:02:54]}  Qa5 {[%clk 0:02:00]} 11. Qa4 {[%clk 0:02:15]}  Qxa4 {[%clk 0:01:31]} 12. Bxa4 {[%clk 0:02:14]}  Bxf3 {[%clk 0:01:30]} 13. gxf3 {[%clk 0:02:13]}  Rc8 {[%clk 0:01:27]} 14. Rb1 {[%clk 0:02:12]}  Be7 {[%clk 0:00:51]} 15. Rxb7 {[%clk 0:02:10]}  Bd8 {[%clk 0:00:52]} 16. Bf4 {[%clk 0:02:02]}  O-O {[%clk 0:00:49]} 17. Bd6 {[%clk 0:02:02]}  Re8 {[%clk 0:00:42]} 18. Kd1 {[%clk 0:02:01]}  e5 {[%clk 0:00:42]} 19. dxe5 {[%clk 0:02:00]}  Bg5 {[%clk 0:00:36]} 20. Re1 {[%clk 0:01:58]}  Na5 {[%clk 0:00:30]} 21. Bxe8 {[%clk 0:01:53]}  Nxb7 {[%clk 0:00:29]} 22. Bd7 {[%clk 0:01:53]}  Rd8 {[%clk 0:00:26]} 23. c6 {[%clk 0:01:52]}  Nxd6 {[%clk 0:00:15]} 24. exd6 {[%clk 0:01:52]}  g6 {[%clk 0:00:07]} 25. c7 {[%clk 0:01:51]} 1-0


[Site "https://www.chess.com"]